fUSD/lending_fUSD_20250611
["ID","MTS","AMOUNT","RATE_DAILY","PERIOD"]
[365459908,1749682239680,-500.0,0.00019178,2]
[365459909,1749682239690,-127.4036989,0.00019178,2]
[365459910,1749682239701,-362.5963011,0.00019178,2]
[365459911,1749682239711,-175.28657998,0.00019178,2]
[365459912,1749682239749,-314.71342002,0.00019178,2]
[365459914,1749682239759,-490.0,0.00019178,2]
[365459916,1749682239768,-490.0,0.00019178,2]
[365459918,1749682239777,-480.0,0.00019178,2]
[365459920,1749682239787,-480.0,0.00019178,2]
[365459922,1749682239797,-490.0,0.00019178,2]
[365459924,1749682239809,-480.0,0.00019178,2]
[365459926,1749682239819,-518.73575585,0.00019178,2]
[365459928,1749682239828,-490.0,0.00019178,2]
[365459930,1749682239837,-2035.03,0.00019178,2]
[365459932,1749682239847,-490.0,0.00019178,2]
[365459934,1749682239856,-635.68,0.00019178,2]
[365459936,1749682239869,-1119.15,0.00019178,2]
[365459938,1749682239881,-490.0,0.00019178,2]
[365459940,1749682239890,-480.0,0.00019178,2]
[365459942,1749682239899,-490.0,0.00019178,2]
[365459944,1749682239909,-435.17107617,0.00019178,2]
[365459946,1749682239919,-490.0,0.00019178,2]
[365459948,1749682239929,-480.0,0.00019178,2]
[365459950,1749682239938,-822.24,0.00019178,2]
[365459952,1749682239948,-561.45497211,0.00019178,2]
[365459954,1749682239957,-460.0,0.00019178,2]
[365459956,1749682239967,-881.93,0.00019178,2]
[365459958,1749682239976,-993.39,0.00019178,2]
[365459960,1749682239985,-490.0,0.00019178,2]
[365459962,1749682239995,-1042.23,0.00019178,2]
[365459964,1749682240004,-490.0,0.00019178,2]
[365459966,1749682240014,-490.0,0.00019178,2]
[365459968,1749682240023,-490.0,0.00019178,2]
[365459970,1749682240033,-490.0,0.00019178,2]
[365459971,1749682240042,-490.0,0.00019178,2]
[365459973,1749682240052,-480.0,0.00019178,2]
[365459975,1749682240061,-704.71,0.00019178,2]
[365459977,1749682240071,-250.0,0.00019178,2]
[365459979,1749682240080,-480.0,0.00019178,2]
[365459981,1749682240089,-938.38,0.00019178,2]
[365459983,1749682240099,-490.0,0.00019178,2]
[365459985,1749682240108,-490.0,0.00019178,2]
[365459987,1749682240118,-490.0,0.00019178,2]
[365459989,1749682240128,-490.0,0.00019178,2]
[365459991,1749682240137,-916.79,0.00019178,2]
[365459993,1749682240146,-490.0,0.00019178,2]
[365459995,1749682240156,-1000.0,0.00019178,2]
[365459997,1749682240166,-460.0,0.00019178,2]
[365459999,1749682240176,-480.0,0.00019178,2]
[365460001,1749682240185,-480.0,0.00019178,2]
[365460003,1749682240195,-428.89377785,0.00019178,2]
[365460005,1749682240205,-490.0,0.00019178,2]
[365460007,1749682240214,-490.0,0.00019178,2]
[365460030,1749682240430,-418.80468656,0.00019178,2]
[365460031,1749682240440,-480.0,0.00019178,2]
[365460032,1749682240450,-480.0,0.00019178,2]
[365460033,1749682240460,-490.0,0.00019178,2]
[365460034,1749682240469,-1231.26,0.00019178,2]
[365460035,1749682240479,-490.0,0.00019178,2]
[365460036,1749682240488,-480.0,0.00019178,2]
[365460037,1749682240498,-492.31792865,0.00019178,2]
[365460038,1749682240507,-490.0,0.00019178,2]
[365460039,1749682240516,-480.0,0.00019178,2]
[365460041,1749682240526,-490.0,0.00019178,2]
[365460043,1749682240536,-480.0,0.00019178,2]
[365460045,1749682240545,-955.91,0.00019178,2]
[365460047,1749682240554,-490.0,0.00019178,2]
[365460049,1749682240564,-490.0,0.00019178,2]
[365460051,1749682240573,-490.0,0.00019178,2]
[365460053,1749682240583,-496.7189745,0.00019178,2]
[365460055,1749682240593,-480.0,0.00019178,2]
[365460056,1749682240602,-480.0,0.00019178,2]
[365460057,1749682240616,-738.04,0.00019178,2]
[365460058,1749682240625,-518.41,0.00019178,2]
[365460059,1749682240635,-490.0,0.00019178,2]
[365460060,1749682240645,-2151.15,0.00019178,2]
[365460061,1749682240654,-629.12368424,0.00019178,2]
[365460062,1749682240664,-480.0,0.00019178,2]
[365460063,1749682240674,-490.0,0.00019178,2]
[365460064,1749682240684,-413.98880786,0.00019178,2]
[365460065,1749682240693,-361.02996678,0.00019178,2]
[365460066,1749682240703,-490.0,0.00019178,2]
[365460067,1749682240712,-560.98,0.00019178,2]
[365460068,1749682240723,-3527.25,0.00019178,2]
[365460069,1749682240733,-490.0,0.00019178,2]
[365460070,1749682240743,-482.75906997,0.00019178,2]
[365460071,1749682240753,-721.09,0.00019178,2]
[365460072,1749682240763,-490.0,0.00019178,2]
[365460073,1749682240773,-490.0,0.00019178,2]
[365460074,1749682240782,-460.0,0.00019178,2]
[365460075,1749682240792,-1115.21,0.00019178,2]
[365460076,1749682240802,-1785.00892325,0.00019178,2]
[365460077,1749682241211,-367.53107675,0.00019178,2]
[365460078,1749682241221,-490.0,0.00019178,2]
[365460079,1749682241231,-6528.76,0.00019178,2]
[365460080,1749682241241,-3371.86,0.00019178,2]
[365460081,1749682241251,-763.65,0.00019178,2]
[365460082,1749682241261,-460.0,0.00019178,2]
[365460083,1749682241271,-736.77,0.00019178,2]
[365460084,1749682241280,-822.785935,0.00019178,2]
[365460085,1749682241290,-490.0,0.00019178,2]
[365460086,1749682241299,-1030.98,0.00019178,2]
[365460087,1749682241309,-1080.71,0.00019178,2]
[365460088,1749682241318,-490.0,0.00019178,2]
[365460089,1749682241327,-770.07,0.00019178,2]
[365460090,1749682241337,-3782.9,0.00019178,2]
[365460091,1749682241346,-501.5244694,0.00019178,2]
[365460092,1749682241356,-2754.37,0.00019178,2]
[365460093,1749682241369,-490.0,0.00019178,2]
[365460094,1749682241378,-480.0,0.00019178,2]
[365460095,1749682241389,-490.0,0.00019178,2]
[365460096,1749682241398,-594.16,0.00019178,2]
[365460097,1749682241407,-4206.88,0.00019178,2]
[365460098,1749682241417,-490.0,0.00019178,2]
[365460099,1749682241426,-1011.23,0.00019178,2]
[365460100,1749682241435,-4732.31,0.00019178,2]
[365460101,1749682241445,-1000.0,0.00019178,2]
[365460102,1749682241455,-490.0,0.00019178,2]
[365460103,1749682241464,-490.0,0.00019178,2]
[365460104,1749682241474,-469.48983268,0.00019178,2]
[365460105,1749682241484,-1275.07,0.00019178,2]
[365460106,1749682241494,-490.0,0.00019178,2]
[365460107,1749682241504,-1347.32,0.00019178,2]
[365460108,1749682241514,-9443.81,0.00019178,2]
[365460109,1749682241523,-490.0,0.00019178,2]
[365460110,1749682241534,-602.24489809,0.00019178,2]
[365460111,1749682241543,-1559.98,0.00019178,2]
[365460112,1749682241553,-492.47177423,0.00019178,2]
[365460113,1749682241573,-485.10186756,0.00019178,2]
[365460114,1749682241583,-837.34,0.00019178,2]
[365460115,1749682241592,-490.0,0.00019178,2]
[365460116,1749682241602,-2309.4,0.00019178,2]
[365460117,1749682241613,-891.582851,0.00019178,2]
[365460118,1749682241622,-415.97566595,0.00019178,2]
[365460119,1749682241632,-690.99,0.00019178,2]
[365460120,1749682241641,-491.92044498,0.00019178,2]
[365460121,1749682241652,-490.0,0.00019178,2]
[365460122,1749682241662,-480.0,0.00019178,2]
[365460123,1749682241672,-1335.03,0.00019178,2]
[365460124,1749682241681,-490.0,0.00019178,2]
[365460125,1749682241691,-683.82,0.00019178,2]
[365460126,1749682241700,-480.0,0.00019178,2]
[365460127,1749682241710,-170.34938031,0.00019178,2]
[365460128,1749682241720,-1066.47,0.00019178,2]
[365460129,1749682241729,-661.64,0.00019178,2]
[365460130,1749682241739,-490.0,0.00019178,2]
[365460131,1749682241749,-552.17,0.00019178,2]
[365460132,1749682241758,-490.0,0.00019178,2]
[365460133,1749682241768,-900.3,0.00019178,2]
[365460134,1749682241778,-888.87,0.00019178,2]
[365460135,1749682241788,-490.0,0.00019178,2]
[365460136,1749682241798,-480.0,0.00019178,2]
[365460137,1749682241811,-480.0,0.00019178,2]
[365460138,1749682241821,-490.0,0.00019178,2]
[365460139,1749682241831,-1688.53,0.00019178,2]
[365460140,1749682241841,-975.79,0.00019178,2]
[365460141,1749682241851,-596.8,0.00019178,2]
[365460142,1749682241861,-480.0,0.00019178,2]
[365460143,1749682241870,-490.0,0.00019178,2]
[365460144,1749682241881,-480.0,0.00019178,2]
[365460145,1749682241891,-485.37750756,0.00019178,2]
[365460146,1749682241900,-769.78,0.00019178,2]
[365460147,1749682241910,-493.41407649,0.00019178,2]
[365460148,1749682241919,-929.5,0.00019178,2]
[365460149,1749682241930,-490.0,0.00019178,2]
[365460150,1749682241939,-490.0,0.00019178,2]
[365460151,1749682241949,-490.0,0.00019178,2]
[365460152,1749682241959,-480.0,0.00019178,2]
[365460153,1749682241968,-1281.04,0.00019178,2]
[365460154,1749682241978,-483.18040379,0.00019178,2]
[365460155,1749682241987,-1014.09,0.00019178,2]
[365460156,1749682241996,-490.0,0.00019178,2]
[365460157,1749682242006,-490.0,0.00019178,2]
[365460158,1749682242016,-1233.07,0.00019178,2]
[365460159,1749682242025,-480.0,0.00019178,2]
[365460160,1749682242035,-480.0,0.00019178,2]
[365460161,1749682242044,-500.07,0.00019178,2]
[365460162,1749682242053,-1557.05,0.00019178,2]
[365460163,1749682242063,-490.0,0.00019178,2]
[365460164,1749682242073,-1625.34,0.00019178,2]
[365460165,1749682242082,-490.0,0.00019178,2]
[365460166,1749682242092,-490.0,0.00019178,2]
[365460167,1749682242102,-644.03,0.00019178,2]
[365460168,1749682242113,-480.0,0.00019178,2]
[365460169,1749682242122,-572.33,0.00019178,2]
[365460170,1749682242131,-480.0,0.00019178,2]
[365460171,1749682242141,-497.24578645,0.00019178,2]
[365460172,1749682242150,-1169.87,0.00019178,2]
[365460173,1749682242160,-486.05339023,0.00019178,2]
[365460174,1749682242169,-490.0,0.00019178,2]
[365460175,1749682242179,-480.0,0.00019178,2]
[365460176,1749682242188,-983.0,0.00019178,2]
[365460177,1749682242197,-484.51187732,0.00019178,2]
[365460178,1749682242207,-490.0,0.00019178,2]
[365460179,1749682242217,-3559.69,0.00019178,2]
[365460180,1749682242226,-490.0,0.00019178,2]
[365460181,1749682242236,-5508.73,0.00019178,2]
[365460182,1749682242246,-490.0,0.00019178,2]
[365460183,1749682242255,-490.0,0.00019178,2]
[365460184,1749682242264,-807.18,0.00019178,2]
[365460185,1749682242274,-480.0,0.00019178,2]
[365460186,1749682242284,-490.0,0.00019178,2]
[365460187,1749682242293,-490.0,0.00019178,2]
[365460188,1749682242303,-3691.3,0.00019178,2]
[365460189,1749682242313,-1245.73,0.00019178,2]
[365460191,1749682242323,-832.05,0.00019178,2]
[365460193,1749682242333,-490.0,0.00019178,2]
[365460194,1749682242342,-480.0,0.00019178,2]
[365460195,1749682242352,-422.24263036,0.00019178,2]
[365460196,1749682242361,-480.0,0.00019178,2]
[365460197,1749682242371,-480.0,0.00019178,2]
[365460198,1749682242380,-858.99,0.00019178,2]
[365460199,1749682242390,-490.0,0.00019178,2]
[365460201,1749682242400,-490.0,0.00019178,2]
[365460203,1749682242410,-1825.24,0.00019178,2]
[365460204,1749682242419,-480.71996608,0.00019178,2]
[365460205,1749682242429,-481.55726094,0.00019178,2]
[365460207,1749682242438,-2458.1,0.00019178,2]
[365460208,1749682242448,-490.0,0.00019178,2]
[365460209,1749682242458,-383.41112128,0.00019178,2]
[365460210,1749682242467,-490.0,0.00019178,2]
[365460211,1749682242477,-480.0,0.00019178,2]
[365460212,1749682242487,-500.0,0.00019178,2]
[365460213,1749682242497,-490.0,0.00019178,2]
[365460214,1749682242519,-500.0,0.00019178,2]
[365460215,1749682242540,-1137.59,0.00019178,2]
[365460216,1749682242560,-480.0,0.00019178,2]
[365460217,1749682242572,-480.0,0.00019178,2]
[365460218,1749682242581,-1754.03,0.00019178,2]
[365460219,1749682242590,-490.0,0.00019178,2]
[365460220,1749682242600,-490.0,0.00019178,2]
[365460221,1749682242609,-480.0,0.00019178,2]
[365460222,1749682242618,-490.0,0.00019178,2]
[365460223,1749682242628,-490.0,0.00019178,2]
[365460224,1749682242638,-638.62,0.00019178,2]
[365460225,1749682242648,-783.4,0.00019178,2]
[365460226,1749682242657,-480.0,0.00019178,2]
[365460227,1749682242666,-480.0,0.00019178,2]
[365460228,1749682242675,-2036.59,0.00019178,2]
[365460229,1749682242685,-480.0,0.00019178,2]
[365460230,1749682242694,-490.0,0.00019178,2]
[365460231,1749682242703,-1472.05,0.00019178,2]
[365460232,1749682242712,-696.28,0.00019178,2]
[365460233,1749682242722,-507.70935464,0.00019178,2]
[365460234,1749682242731,-490.0,0.00019178,2]
[365460235,1749682242740,-716.93,0.00019178,2]
[365460236,1749682242749,-2777.28,0.00019178,2]
[365460237,1749682242759,-480.0,0.00019178,2]
[365460238,1749682242768,-490.0,0.00019178,2]
[365460239,1749682242777,-695.53,0.00019178,2]
[365460240,1749682242786,-1438.51,0.00019178,2]
[365460241,1749682242797,-490.0,0.00019178,2]
[365460242,1749682242808,-480.0,0.00019178,2]
[365460243,1749682242818,-490.0,0.00019178,2]
[365460244,1749682242827,-299.15881782,0.00019178,2]
[365460245,1749682242836,-486.02065922,0.00019178,2]
[365460246,1749682242845,-480.0,0.00019178,2]
[365460247,1749682242856,-779.91,0.00019178,2]
[365460248,1749682242867,-502.36948059,0.00019178,2]
[365460249,1749682242876,-1739.59,0.00019178,2]
[365460250,1749682242885,-1014.44,0.00019178,2]
[365460251,1749682242894,-480.0,0.00019178,2]
[365460252,1749682242903,-490.0,0.00019178,2]
[365460253,1749682242913,-404.98680034,0.00019178,2]
[365460254,1749682242922,-1173.92,0.00019178,2]
[365460255,1749682242931,-848.65,0.00019178,2]
[365460256,1749682242940,-555.79,0.00019178,2]
[365460257,1749682242950,-490.0,0.00019178,2]
[365460258,1749682242959,-487.19512927,0.00019178,2]
[365460259,1749682242968,-4659.92,0.00019178,2]
[365460260,1749682242978,-489.29238845,0.00019178,2]
[365460261,1749682242987,-480.0,0.00019178,2]
[365460262,1749682242996,-490.0,0.00019178,2]
[365460263,1749682243006,-288.26849159,0.00019178,2]
[365460264,1749682243015,-481.2423928,0.00019178,2]
[365460265,1749682243024,-1042.0,0.00019178,2]
[365460266,1749682243033,-500.0,0.00019178,2]
[365460267,1749682243043,-500.0,0.00019178,2]
[365460268,1749682243051,-480.0,0.00019178,2]
[365460269,1749682243061,-490.0,0.00019178,2]
[365460270,1749682243070,-490.0,0.00019178,2]
[365460271,1749682243079,-532.51,0.00019178,2]
[365460272,1749682243089,-490.0,0.00019178,2]
[365460273,1749682243098,-490.0,0.00019178,2]
[365460274,1749682243107,-539.18,0.00019178,2]
[365460275,1749682243117,-1263.76,0.00019178,2]
[365460276,1749682243126,-480.0,0.00019178,2]
[365460277,1749682243135,-490.0,0.00019178,2]
[365460278,1749682243144,-490.0,0.00019178,2]
[365460279,1749682243154,-486.25828105,0.00019178,2]
[365460280,1749682243163,-490.0,0.00019178,2]
[365460281,1749682243173,-484.01917455,0.00019178,2]
[365460282,1749682243182,-490.0,0.00019178,2]
[365460283,1749682243191,-826.52,0.00019178,2]
[365460284,1749682243201,-490.0,0.00019178,2]
[365460285,1749682243210,-480.0,0.00019178,2]
[365460286,1749682243220,-490.0,0.00019178,2]
[365460287,1749682243229,-490.0,0.00019178,2]
[365460288,1749682243239,-480.0,0.00019178,2]
[365460289,1749682243248,-2065.32,0.00019178,2]
[365460290,1749682243257,-480.0,0.00019178,2]
[365460291,1749682243267,-490.0,0.00019178,2]
[365460292,1749682243276,-1807.73,0.00019178,2]
[365460293,1749682243286,-490.0,0.00019178,2]
[365460294,1749682243295,-972.29,0.00019178,2]
[365460295,1749682243305,-480.0,0.00019178,2]
[365460296,1749682243314,-3210.24,0.00019178,2]
[365460297,1749682243324,-480.0,0.00019178,2]
[365460298,1749682243334,-480.0,0.00019178,2]
[365460299,1749682243344,-490.0,0.00019178,2]
[365460300,1749682243353,-480.0,0.00019178,2]
[365460301,1749682243364,-362.87284148,0.00019178,2]
[365460302,1749682243374,-1058.67,0.00019178,2]
[365460303,1749682243383,-1031.42,0.00019178,2]
[365460304,1749682243392,-539.71,0.00019178,2]
[365460305,1749682243402,-490.0,0.00019178,2]
[365460306,1749682243411,-480.0,0.00019178,2]
[365460307,1749682243420,-1038.53,0.00019178,2]
[365460308,1749682243430,-490.0,0.00019178,2]
[365460309,1749682243439,-490.0,0.00019178,2]
[365460310,1749682243448,-9848.47,0.00019178,2]
[365460311,1749682243457,-490.0,0.00019178,2]
[365460312,1749682243467,-490.0,0.00019178,2]
[365460313,1749682243476,-490.0,0.00019178,2]
[365460314,1749682243485,-480.0,0.00019178,2]
[365460315,1749682243494,-1130.65,0.00019178,2]
[365460316,1749682243503,-480.0,0.00019178,2]
[365460317,1749682243512,-614.97,0.00019178,2]
[365460318,1749682243522,-490.0,0.00019178,2]
[365460319,1749682243532,-490.0,0.00019178,2]
[365460320,1749682243543,-439.98438175,0.00019178,2]
[365460321,1749682243553,-490.0,0.00019178,2]
[365460322,1749682243562,-490.0,0.00019178,2]
[365460323,1749682243571,-1776.31,0.00019178,2]
[365460324,1749682243580,-490.0,0.00019178,2]
[365460325,1749682243589,-484.28061092,0.00019178,2]
[365460326,1749682243599,-3486.14,0.00019178,2]
[365460327,1749682243609,-480.0,0.00019178,2]
[365460328,1749682243619,-529.15512062,0.00019178,2]
[365460329,1749682243627,-490.0,0.00019178,2]
[365460330,1749682243638,-480.0,0.00019178,2]
[365460331,1749682243650,-490.0,0.00019178,2]
[365460332,1749682243660,-1609.65,0.00019178,2]
[365460333,1749682243669,-4895.05,0.00019178,2]
[365460334,1749682243678,-490.0,0.00019178,2]
[365460335,1749682243687,-490.0,0.00019178,2]
[365460336,1749682243695,-490.0,0.00019178,2]
[365460337,1749682243705,-490.0,0.00019178,2]
[365460338,1749682243714,-490.0,0.00019178,2]
[365460339,1749682243724,-2389.29,0.00019178,2]
[365460340,1749682243734,-490.0,0.00019178,2]
[365460341,1749682243743,-490.0,0.00019178,2]
[365460342,1749682243751,-490.0,0.00019178,2]
[365460343,1749682243761,-490.0,0.00019178,2]
[365460344,1749682243770,-490.0,0.00019178,2]
[365460345,1749682243779,-2294.03,0.00019178,2]
[365460346,1749682243787,-826.81,0.00019178,2]
[365460347,1749682243796,-721.53,0.00019178,2]
[365460348,1749682243808,-490.0,0.00019178,2]
[365460349,1749682243816,-494.9345283,0.00019178,2]
[365460350,1749682243825,-2016.03,0.00019178,2]
[365460351,1749682243834,-2030.73,0.00019178,2]
[365460352,1749682243845,-490.0,0.00019178,2]
[365460353,1749682243854,-490.0,0.00019178,2]
[365460354,1749682243863,-490.0,0.00019178,2]
[365460355,1749682243872,-490.0,0.00019178,2]
[365460356,1749682243884,-2506.07,0.00019178,2]
[365460357,1749682243893,-490.0,0.00019178,2]
[365460358,1749682243902,-656.21,0.00019178,2]
[365460359,1749682243911,-490.0,0.00019178,2]
[365460360,1749682243920,-490.0,0.00019178,2]
[365460361,1749682243929,-989.95,0.00019178,2]
[365460362,1749682243938,-557.54,0.00019178,2]
[365460363,1749682243947,-490.0,0.00019178,2]
[365460364,1749682243955,-480.0,0.00019178,2]
[365460365,1749682243964,-480.0,0.00019178,2]
[365460366,1749682244189,-480.0,0.00019178,2]
[365460367,1749682244199,-480.0,0.00019178,2]
[365460368,1749682244209,-480.0,0.00019178,2]
[365460369,1749682244218,-480.0,0.00019178,2]
[365460370,1749682244227,-490.0,0.00019178,2]
[365460371,1749682244236,-806.07,0.00019178,2]
[365460372,1749682244245,-490.0,0.00019178,2]
[365460373,1749682244254,-490.0,0.00019178,2]
[365460374,1749682244263,-14460.44,0.00019178,2]
[365460375,1749682244273,-3554.43,0.00019178,2]
[365460376,1749682244282,-3554.43,0.00019178,2]
[365460377,1749682244292,-529.15115664,0.00019178,2]
[365460378,1749682244301,-566.13,0.00019178,2]
[365460379,1749682244310,-660.62,0.00019178,2]
[365460380,1749682244321,-500.0,0.00019178,2]
[365460381,1749682244330,-500.0,0.00019178,2]
[365460382,1749682244340,-490.0,0.00019178,2]
[365460383,1749682244349,-480.0,0.00019178,2]
[365460384,1749682244358,-490.0,0.00019178,2]
[365460385,1749682244368,-572.24,0.00019178,2]
[365460386,1749682244377,-490.0,0.00019178,2]
[365460387,1749682244387,-480.0,0.00019178,2]
[365460388,1749682244396,-490.0,0.00019178,2]
[365460389,1749682244405,-480.0,0.00019178,2]
[365460390,1749682244414,-480.0,0.00019178,2]
[365460391,1749682244423,-490.0,0.00019178,2]
[365460392,1749682244432,-1727.48,0.00019178,2]
[365460393,1749682244441,-1282.12,0.00019178,2]
[365460394,1749682244451,-490.0,0.00019178,2]
[365460395,1749682244460,-490.0,0.00019178,2]
[365460396,1749682244468,-490.0,0.00019178,2]
[365460397,1749682244477,-490.0,0.00019178,2]
[365460398,1749682244486,-490.0,0.00019178,2]
[365460399,1749682244495,-490.0,0.00019178,2]
[365460400,1749682244504,-951.06,0.00019178,2]
[365460401,1749682244514,-490.0,0.00019178,2]
[365460402,1749682244523,-616.72,0.00019178,2]
[365460403,1749682244532,-480.0,0.00019178,2]
[365460404,1749682244541,-490.0,0.00019178,2]
[365460405,1749682244550,-576.45516568,0.00019178,2]
[365460406,1749682244559,-480.0,0.00019178,2]
[365460407,1749682244568,-152.232747,0.00019178,2]
[365460408,1749682244577,-490.0,0.00019178,2]
[365460409,1749682244586,-528.64442179,0.00019178,2]
[365460410,1749682244595,-480.0,0.00019178,2]
[365460411,1749682244616,-480.0,0.00019178,2]
[365460412,1749682244635,-280.27049128,0.00019178,2]
[365460413,1749682244645,-480.0,0.00019178,2]
[365460414,1749682244659,-397.30792608,0.00019178,2]
[365460415,1749682244674,-500.0,0.00019178,2]
[365460416,1749682244686,-500.0,0.00019178,2]
[365460417,1749682244695,-250.22371459,0.00019178,2]
[365460418,1749682244704,-490.0,0.00019178,2]
[365460419,1749682244713,-490.0,0.00019178,2]
[365460420,1749682244722,-747.49,0.00019178,2]
[365460421,1749682244731,-490.0,0.00019178,2]
[365460422,1749682244740,-490.0,0.00019178,2]
[365460423,1749682244749,-480.0,0.00019178,2]
[365460424,1749682244758,-490.0,0.00019178,2]
[365460425,1749682244767,-480.0,0.00019178,2]
[365460426,1749682244776,-3917.2,0.00019178,2]
[365460427,1749682244785,-1332.15,0.00019178,2]
[365460428,1749682244794,-480.0,0.00019178,2]
[365460429,1749682244805,-576.55,0.00019178,2]
[365460430,1749682244815,-1080.67,0.00019178,2]
[365460431,1749682244824,-536.28,0.00019178,2]
[365460432,1749682244833,-178.66,0.00019178,2]
[365460433,1749682244843,-454.89,0.00019178,2]
[365460434,1749682244853,-170.71,0.00019178,2]
[365460435,1749682244863,-163.35,0.00019178,2]
[365460436,1749682244872,-150.28,0.00019178,2]
[365460437,1749682244883,-354.55,0.00019178,2]
[365460438,1749682244892,-150.0,0.00019178,2]
[365460439,1749682244902,-150.0,0.00019178,2]
[365460440,1749682244911,-454.89,0.00019178,2]
[365460441,1749682244920,-1163.78,0.00019178,2]
[365460442,1749682244929,-170.71,0.00019178,2]
[365460443,1749682244938,-354.55,0.00019178,2]
[365460444,1749682244947,-163.35,0.00019178,2]
[365460445,1749682244956,-1163.78,0.00019178,2]
[365460446,1749682244965,-354.55,0.00019178,2]
[365460447,1749682244975,-170.71,0.00019178,2]
[365460448,1749682244984,-454.89,0.00019178,2]
[365460449,1749682244993,-163.35,0.00019178,2]
[365460450,1749682245003,-1163.78,0.00019178,2]
[365460451,1749682245012,-354.55,0.00019178,2]
[365460452,1749682245021,-163.35,0.00019178,2]
[365460453,1749682245031,-170.71,0.00019178,2]
[365460454,1749682245040,-1163.78,0.00019178,2]
[365460455,1749682245049,-170.71,0.00019178,2]
[365460456,1749682245058,-163.35,0.00019178,2]
[365460457,1749682245067,-354.55,0.00019178,2]
[365460458,1749682245077,-165.35,0.00019178,2]
[365460459,1749682245086,-163.35,0.00019178,2]
[365460460,1749682245095,-354.55,0.00019178,2]
[365460461,1749682245104,-354.55,0.00019178,2]
[365460462,1749682245114,-354.55,0.00019178,2]
[365460463,1749682245123,-708.31,0.00019178,2]
[365460464,1749682245132,-2618.2481025,0.0001919,2]
[365460466,1749682245142,-2618.08,0.00019206,2]
[365460467,1749682245151,-206.92711805,0.00019208,2]
[365460468,1749682245160,-227.50568271,0.00019233,2]
[365460470,1749682245169,-218.25802308,0.00019242,2]
[365460471,1749682245178,-555.66767868,0.00019242,2]
[365460473,1749682245187,-167.09663612,0.00019242,2]
[365460475,1749682245196,-2715.12328229,0.00019245,2]
[365460476,1749682245205,-228.98933312,0.00019261,2]
[365460477,1749682245215,-206.92711805,0.00019285,2]
[365460478,1749682245224,-2815.58284374,0.000193,2]
[365460479,1749682245234,-227.50568271,0.00019315,2]
[365460480,1749682245243,-500.0,0.00019341,2]
[365460481,1749682245252,-500.0,0.00019341,2]
[365460482,1749682245261,-500.0,0.00019341,2]
[365460483,1749682245270,-3554.43,0.00019341,2]
[365460484,1749682245280,-500.0,0.00019341,2]
[365460485,1749682245289,-305.61,0.00019342,2]
[365460486,1749682245298,-470.0,0.00019342,2]
[365460487,1749682245307,-470.0,0.00019342,2]
[365460488,1749682245316,-470.0,0.00019342,2]
[365460489,1749682245325,-470.0,0.00019342,2]
[365460490,1749682245335,-490.0,0.00019342,2]
[365460491,1749682245344,-490.0,0.00019342,2]
[365460492,1749682245353,-490.0,0.00019342,2]
[365460493,1749682245363,-470.0,0.00019342,2]